[Event "ETCC Women 2013"]
[Site "Warsaw"]
[Date "2013.11.15"]
[Round "7"]
[White "Abdulla, Khayala"]
[Black "Haast, Anne"]
[Result "0-1"]
[ECO "B47"]
[WhiteElo "2255"]
[BlackElo "2262"]
[PlyCount "146"]
[EventDate "2013.??.??"]
[EventCountry "POL"]
[WhiteTeam "Azerbaijan"]
[BlackTeam "Netherlands"]
[WhiteTeamCountry "AZE"]
[BlackTeamCountry "NED"]
[TimeControl "40/5400+30:1800+30"]

1. e4 c5 {[%emt 0:00:00]} 2. Nf3 {[%emt 0:00:00]} e6 {[%emt 0:00:08]} 3. d4 {
[%emt 0:00:00]} cxd4 {[%emt 0:00:12]} 4. Nxd4 {[%emt 0:00:00]} Nc6 {[%emt 0:00:
25]} 5. Nc3 {[%emt 0:00:16]} Qc7 {[%emt 0:00:18]} 6. Be2 {[%emt 0:01:02]} a6 {
[%emt 0:00:48]} 7. O-O {[%emt 0:00:36]} Nf6 {[%emt 0:00:26]} 8. Kh1 {[%emt 0:
00:16]} h5 {[%emt 0:04:56]} 9. Nxc6 {[%emt 0:01:15]} dxc6 {[%emt 0:06:40]} 10.
f4 {[%emt 0:01:31]} Ng4 {[%emt 0:15:28]} 11. e5 {[%emt 0:06:37]} Bd7 {[%emt 0:
03:16]} 12. Ne4 {[%emt 0:12:36]} O-O-O {[%emt 0:05:54]} 13. Qe1 {[%emt 0:04:50]
} Be7 {[%emt 0:28:27]} 14. Bd2 {[%emt 0:04:58]} Kb8 {[%emt 0:03:21]} 15. Rf3 {
[%emt 0:04:02]} Ka8 {[%emt 0:04:06]} 16. Rb3 {[%emt 0:03:44]} Rb8 {[%emt 0:01:
33]} 17. Rd1 {[%emt 0:05:16]} f5 {[%emt 0:02:53]} 18. Nd6 {[%emt 0:06:50]} Bxd6
{[%emt 0:03:47]} 19. exd6 {[%emt 0:02:27]} Qxd6 {[%emt 0:00:34]} 20. Be3 Qc7 {
[%emt 0:00:30]} 21. Bg1 {[%emt 0:11:28]} Rbd8 {[%emt 0:02:03]} 22. Qb4 {[%emt
0:02:51]} b5 {[%emt 0:01:46]} 23. Qc5 {[%emt 0:01:33]} Bc8 {[%emt 0:01:45]} 24.
Rxd8 {[%emt 0:04:04]} Rxd8 {[%emt 0:00:05]} 25. Bf3 {[%emt 0:01:35]} Kb8 {
[%emt 0:01:05]} 26. a4 {[%emt 0:04:19]} Bb7 {[%emt 0:02:29]} 27. axb5 {[%emt 0:
00:33]} axb5 {[%emt 0:00:13]} 28. c4 {[%emt 0:02:40]} Rd6 {[%emt 0:09:47]} 29.
cxb5 {[%emt 0:01:05]} Kc8 {[%emt 0:00:42]} 30. bxc6 {[%emt 0:00:53]} Bxc6 {
[%emt 0:00:24]} 31. Rc3 {[%emt 0:01:13]} Kd7 {[%emt 0:00:19]} 32. b4 {[%emt 0:
00:47]} Qb7 {[%emt 0:00:17]} 33. Bxc6+ {[%emt 0:00:23]} Rxc6 {[%emt 0:00:07]}
34. Qd4+ {[%emt 0:01:42]} Ke8 {[%emt 0:00:17]} 35. Rd3 {[%emt 0:00:35]} Nf6 {
[%emt 0:00:21]} 36. Qd8+ {[%emt 0:00:29]} Kf7 {[%emt 0:00:00]} 37. Bc5 {[%emt
0:00:16]} Rc8 {[%emt 0:01:34]} 38. Qd4 {[%emt 0:01:15]} Ra8 {[%emt 0:00:22]}
39. h3 {[%emt 0:05:03]} Ra2 {[%emt 0:00:47]} 40. Rd2 {[%emt 0:00:00]} Ra3 {
[%emt 0:00:00]} 41. Kh2 {[%emt 0:02:42]} Qb5 {[%emt 0:04:54]} 42. Qe5 {[%emt 0:
06:24]} Qf1 {[%emt 0:03:50]} 43. Bd4 {[%emt 0:06:05]} Kg6 {[%emt 0:03:57]} 44.
Rf2 {[%emt 0:03:50]} Qc4 {[%emt 0:00:13]} 45. b5 {[%emt 0:04:13]} Rd3 {[%emt 0:
00:27]} 46. Bb2 {[%emt 0:00:46]} Rb3 {[%emt 0:02:05]} 47. Rf3 {[%emt 0:10:28]}
Rxb5 {[%emt 0:14:41]} 48. Rg3+ {[%emt 0:00:26]} Kh6 {[%emt 0:00:05]} 49. Qd4 {
[%emt 0:01:03]} Qxd4 {[%emt 0:01:01]} 50. Bxd4 {[%emt 0:00:01]} Ne4 {[%emt 0:
00:42]} 51. Ra3 {[%emt 0:01:18]} Rd5 {[%emt 0:00:38]} 52. Be5 {[%emt 0:02:35]}
g5 {[%emt 0:00:21]} 53. Ra6 {[%emt 0:00:35]} Nc5 {[%emt 0:00:08]} 54. Rc6 {
[%emt 0:00:09]} Kg6 {[%emt 0:00:47]} 55. g3 {[%emt 0:00:52]} h4 {[%emt 0:01:40]
} 56. gxh4 {[%emt 0:00:55]} gxf4 {[%emt 0:01:15]} 57. Bxf4 {[%emt 0:00:14]} Nd3
{[%emt 0:00:06]} 58. Bg5 {[%emt 0:02:02]} Re5 {[%emt 0:00:23]} 59. Kg3 {[%emt
0:00:16]} Re4 {[%emt 0:00:29]} 60. Rd6 {[%emt 0:00:57]} f4+ {[%emt 0:00:19]}
61. Kg2 {[%emt 0:00:51]} Re2+ {[%emt 0:00:41]} 62. Kf1 {[%emt 0:01:16]} Re3 {
[%emt 0:00:14]} 63. Rd8 {[%emt 0:01:39]} Kf5 {[%emt 0:00:25]} 64. Rd4 {[%emt 0:
01:01]} e5 {[%emt 0:00:30]} 65. Ra4 {[%emt 0:00:16]} Rxh3 {[%emt 0:00:29]} 66.
Ke2 {[%emt 0:00:21]} e4 {[%emt 0:00:29]} 67. Kd2 {[%emt 0:00:36]} Ne5 {[%emt 0:
00:40]} 68. Ra5 {[%emt 0:00:19]} Rh2+ {[%emt 0:01:28]} 69. Kc3 {[%emt 0:01:06]}
e3 {[%emt 0:00:48]} 70. Kd4 {[%emt 0:00:52]} Rd2+ {[%emt 0:00:12]} 71. Kc3 {
[%emt 0:00:05]} Rd3+ {[%emt 0:00:35]} 72. Kc2 {[%emt 0:00:03]} e2 {[%emt 0:00:
32]} 73. Ra1 {[%emt 0:00:33]} Re3 {[%emt 0:00:20]} 0-1

[Event "ETCC Women 2013"]
[Site "Warsaw"]
[Date "2013.11.15"]
[Round "7"]
[White "Alexandrova, Olga"]
[Black "Cmilyte, Viktorija"]
[Result "0-1"]
[ECO "A57"]
[WhiteElo "2427"]
[BlackElo "2506"]
[PlyCount "110"]
[EventDate "2013.??.??"]
[EventCountry "POL"]
[WhiteTeam "Spain"]
[BlackTeam "Lithuania"]
[WhiteTeamCountry "ESP"]
[BlackTeamCountry "LTU"]
[TimeControl "40/5400+30:1800+30"]

1. d4 {[%emt 0:00:00]} Nf6 {[%emt 0:00:00]} 2. c4 {[%emt 0:00:00]} c5 {[%emt 0:
00:00]} 3. d5 {[%emt 0:00:00]} b5 {[%emt 0:00:00]} 4. Qc2 bxc4 {[%emt 0:00:21]}
5. e4 g6 {[%emt 0:00:30]} 6. Bxc4 d6 {[%emt 0:00:30]} 7. Nf3 Bg7 {[%emt 0:00:
30]} 8. O-O O-O {[%emt 0:00:30]} 9. Nc3 Ba6 {[%emt 0:00:30]} 10. Nd2 Nfd7 {
[%emt 0:00:30]} 11. b3 Ne5 {[%emt 0:00:30]} 12. Bb2 Bxc4 {[%emt 0:00:30]} 13.
Nxc4 Nxc4 {[%emt 0:00:30]} 14. bxc4 Nd7 {[%emt 0:00:30]} 15. Na4 Qa5 {[%emt 0:
00:30]} 16. Bxg7 Kxg7 {[%emt 0:00:30]} 17. Rab1 Rab8 {[%emt 0:00:30]} 18. h3
Nf6 {[%emt 0:00:30]} 19. Nc3 Rb4 {[%emt 0:00:30]} 20. Rxb4 cxb4 {[%emt 0:00:30]
} 21. Ne2 Qc5 {[%emt 0:00:30]} 22. Rc1 Rc8 {[%emt 0:00:30]} 23. Qb2 Kg8 {[%emt
0:00:30]} 24. e5 Ne4 {[%emt 0:00:30]} 25. Qd4 Nc3 {[%emt 0:00:30]} 26. Qxc5
Nxe2+ {[%emt 0:00:30]} 27. Kf1 Rxc5 {[%emt 0:00:30]} 28. Kxe2 dxe5 {[%emt 0:00:
30]} 29. Kd3 Kf8 {[%emt 0:00:30]} 30. f4 exf4 {[%emt 0:00:30]} 31. Kd4 Ra5 {
[%emt 0:00:30]} 32. Rc2 Ke8 {[%emt 0:00:30]} 33. Rb2 Kd7 {[%emt 0:00:30]} 34.
Rxb4 Kd6 {[%emt 0:00:30]} 35. Rb8 e5+ {[%emt 0:00:30]} 36. dxe6 fxe6 {[%emt 0:
00:30]} 37. c5+ Kc6 {[%emt 0:00:30]} 38. Rc8+ Kd7 {[%emt 0:00:30]} 39. Rh8 Rxa2
{[%emt 0:00:30]} 40. Rxh7+ Kc6 {[%emt 0:00:30]} 41. Ke5 g5 {[%emt 0:30:30]} 42.
Kxe6 a5 {[%emt 0:00:30]} 43. h4 Rxg2 {[%emt 0:00:30]} 44. hxg5 Rxg5 {[%emt 0:
00:30]} 45. Rf7 Kxc5 {[%emt 0:00:30]} 46. Rxf4 Kb5 {[%emt 0:00:30]} 47. Kd6
Rg6+ {[%emt 0:00:30]} 48. Kd5 Rg5+ {[%emt 0:00:30]} 49. Kd6 a4 {[%emt 0:00:30]}
50. Rf3 Rg4 {[%emt 0:00:30]} 51. Kd5 Kb4 {[%emt 0:00:30]} 52. Rf8 a3 {[%emt 0:
00:30]} 53. Ra8 Kb3 {[%emt 0:00:30]} 54. Kc5 a2 {[%emt 0:00:30]} 55. Rb8+ Ka3 {
[%emt 0:00:30]} 0-1

[Event "ETCC Women 2013"]
[Site "Warsaw"]
[Date "2013.11.15"]
[Round "7"]
[White "Barbier, Wiebke"]
[Black "L'Ami, Alina"]
[Result "0-1"]
[ECO "B10"]
[WhiteElo "1945"]
[BlackElo "2361"]
[PlyCount "50"]
[EventDate "2013.??.??"]
[EventCountry "POL"]
[WhiteTeam "Belgium"]
[BlackTeam "Romania"]
[WhiteTeamCountry "BEL"]
[BlackTeamCountry "ROU"]
[TimeControl "40/5400+30:1800+30"]

1. e4 {[%emt 0:00:00]} c6 {[%emt 0:00:00]} 2. d3 {[%emt 0:00:00]} g6 {[%emt 0:
00:00]} 3. Be2 {[%emt 0:08:44]} Bg7 {[%emt 0:01:30]} 4. Nf3 {[%emt 0:00:40]} d5
{[%emt 0:06:14]} 5. O-O {[%emt 0:01:10]} e5 {[%emt 0:05:13]} 6. c3 {[%emt 0:05:
51]} Ne7 {[%emt 0:02:17]} 7. Qc2 {[%emt 0:01:56]} O-O {[%emt 0:05:07]} 8. Nbd2
{[%emt 0:01:14]} h6 {[%emt 0:06:25]} 9. Re1 {[%emt 0:04:52]} Be6 {[%emt 0:04:
14]} 10. Bf1 {[%emt 0:07:12]} Nd7 {[%emt 0:02:14]} 11. b3 {[%emt 0:04:20]} f5 {
[%emt 0:08:45]} 12. Ba3 {[%emt 0:02:09]} c5 {[%emt 0:13:20]} 13. Rad1 {[%emt 0:
07:17]} Rc8 {[%emt 0:02:10]} 14. exd5 {[%emt 0:15:47]} Bxd5 {[%emt 0:03:32]}
15. g3 {[%emt 0:15:16]} g5 {[%emt 0:08:38]} 16. d4 {[%emt 0:08:00]} e4 {[%emt
0:01:45]} 17. dxc5 {[%emt 0:01:04]} exf3 {[%emt 0:02:11]} 18. c6 {[%emt 0:01:
30]} Nxc6 {[%emt 0:00:29]} 19. Bxf8 {[%emt 0:00:25]} Qxf8 {[%emt 0:00:31]} 20.
Nxf3 {[%emt 0:01:45]} Nb4 {[%emt 0:07:48]} 21. Qb1 {[%emt 0:02:08]} Rxc3 {
[%emt 0:02:40]} 22. Nd4 {[%emt 0:02:29]} Ne5 {[%emt 0:01:17]} 23. a3 {[%emt 0:
03:22]} Nbc6 {[%emt 0:02:33]} 24. Ne2 {[%emt 0:02:39]} Nf3+ {[%emt 0:00:12]}
25. Kh1 {[%emt 0:00:06]} Nd2+ {[%emt 0:00:23]} 0-1

[Event "ETCC Women 2013"]
[Site "Warsaw"]
[Date "2013.11.15"]
[Round "7"]
[White "Bartel, Marta"]
[Black "Muzychuk, Mariya"]
[Result "0-1"]
[ECO "E38"]
[WhiteElo "2308"]
[BlackElo "2491"]
[PlyCount "168"]
[EventDate "2013.??.??"]
[EventCountry "POL"]
[WhiteTeam "Poland"]
[BlackTeam "Ukraine"]
[WhiteTeamCountry "POL"]
[BlackTeamCountry "UKR"]
[TimeControl "40/5400+30:1800+30"]

1. d4 {[%emt 0:00:00]} Nf6 {[%emt 0:00:00]} 2. c4 {[%emt 0:00:00]} e6 {[%emt 0:
00:03]} 3. Nc3 {[%emt 0:00:03]} Bb4 {[%emt 0:00:27]} 4. Qc2 {[%emt 0:00:26]} c5
{[%emt 0:05:11]} 5. dxc5 {[%emt 0:00:20]} Na6 {[%emt 0:00:40]} 6. Nf3 {[%emt 0:
07:14]} Nxc5 {[%emt 0:04:53]} 7. a3 {[%emt 0:10:10]} Bxc3+ {[%emt 0:00:14]} 8.
Qxc3 {[%emt 0:00:05]} d5 {[%emt 0:14:31]} 9. cxd5 {[%emt 0:10:03]} Qxd5 {[%emt
0:05:34]} 10. Be3 {[%emt 0:07:06]} Nce4 {[%emt 0:02:31]} 11. Qd4 {[%emt 0:03:
25]} O-O {[%emt 0:03:22]} 12. g3 {[%emt 0:07:19]} Rd8 {[%emt 0:03:42]} 13. Bg2
{[%emt 0:05:51]} Qa5+ {[%emt 0:07:05]} 14. b4 {[%emt 0:06:50]} Rxd4 {[%emt 0:
07:31]} 15. bxa5 {[%emt 0:00:06]} Ra4 {[%emt 0:00:30]} 16. Nd2 {[%emt 0:03:01]}
Bd7 {[%emt 0:00:41]} 17. Nxe4 {[%emt 0:05:27]} Nxe4 {[%emt 0:00:05]} 18. O-O {
[%emt 0:02:10]} Bc6 {[%emt 0:01:58]} 19. Rfc1 {[%emt 0:01:03]} f5 {[%emt 0:05:
04]} 20. Bxe4 {[%emt 0:07:16]} Bxe4 {[%emt 0:00:47]} 21. Bd2 {[%emt 0:03:40]}
Rd4 {[%emt 0:01:02]} 22. Bb4 {[%emt 0:01:49]} Rd7 {[%emt 0:02:33]} 23. f3 {
[%emt 0:02:24]} Bd5 {[%emt 0:00:28]} 24. Kf2 {[%emt 0:00:34]} a6 {[%emt 0:01:
28]} 25. Rc5 {[%emt 0:02:44]} Bc6 {[%emt 0:01:37]} 26. Rac1 {[%emt 0:01:04]}
Kf7 {[%emt 0:00:31]} 27. R5c2 {[%emt 0:02:00]} Rad8 28. h4 {[%emt 0:00:48]} e5
{[%emt 0:11:44]} 29. Rc5 {[%emt 0:01:15]} Rd5 {[%emt 0:02:19]} 30. e4 {[%emt 0:
07:01]} fxe4 {[%emt 0:07:26]} 31. fxe4 {[%emt 0:00:03]} Rxc5 {[%emt 0:00:34]}
32. Rxc5 {[%emt 0:00:08]} Ke6 {[%emt 0:01:19]} 33. Bc3 {[%emt 0:01:49]} Rd3 {
[%emt 0:00:20]} 34. Bxe5 {[%emt 0:00:54]} Bxe4 {[%emt 0:00:32]} 35. Bxg7 {
[%emt 0:02:22]} Rf3+ {[%emt 0:00:16]} 36. Ke2 {[%emt 0:00:06]} Rxg3 {[%emt 0:
00:13]} 37. Re5+ {[%emt 0:01:04]} Kd6 {[%emt 0:00:18]} 38. Rg5 {[%emt 0:00:28]}
Rh3 {[%emt 0:02:36]} 39. Be5+ {[%emt 0:00:28]} Kc6 {[%emt 0:00:55]} 40. Bg3 {
[%emt 0:00:00]} Rh1 {[%emt 0:00:00]} 41. Be1 {[%emt 0:07:40]} Bg6 {[%emt 0:10:
44]} 42. Bf2 {[%emt 0:01:16]} Ra1 {[%emt 0:01:17]} 43. Rc5+ {[%emt 0:03:20]}
Kd6 {[%emt 0:00:25]} 44. Rc3 {[%emt 0:00:14]} Rb1 {[%emt 0:00:51]} 45. Kf3 {
[%emt 0:02:27]} Rb5 {[%emt 0:04:23]} 46. Bb6 {[%emt 0:00:16]} Rf5+ {[%emt 0:00:
19]} 47. Kg3 {[%emt 0:01:00]} Rf1 {[%emt 0:02:11]} 48. Kg2 {[%emt 0:02:15]} Rf7
{[%emt 0:00:46]} 49. Kg3 {[%emt 0:00:16]} Be4 {[%emt 0:00:43]} 50. Bd4 {[%emt
0:04:10]} Kd5 {[%emt 0:00:40]} 51. Bb6 {[%emt 0:00:15]} Ke5 {[%emt 0:00:34]}
52. Rc5+ {[%emt 0:04:25]} Ke6 {[%emt 0:02:59]} 53. Rc3 {[%emt 0:00:44]} h5 {
[%emt 0:00:27]} 54. Bd8 {[%emt 0:02:12]} Ke5 {[%emt 0:01:39]} 55. Bg5 {[%emt 0:
03:09]} Rf1 {[%emt 0:00:21]} 56. Bd8 {[%emt 0:01:16]} Kd4 {[%emt 0:03:23]} 57.
Rb3 {[%emt 0:01:25]} Rg1+ {[%emt 0:03:44]} 58. Kf2 {[%emt 0:00:35]} Rg2+ {
[%emt 0:00:11]} 59. Kf1 {[%emt 0:00:04]} Ra2 {[%emt 0:01:55]} 60. Bb6+ {[%emt
0:01:59]} Ke5 {[%emt 0:03:03]} 61. Rg3 {[%emt 0:00:39]} Ke6 {[%emt 0:01:11]}
62. Kg1 {[%emt 0:01:11]} Bf5 {[%emt 0:02:09]} 63. Kf1 {[%emt 0:00:33]} Bg4 {
[%emt 0:00:12]} 64. Rc3 {[%emt 0:00:31]} Ke5 {[%emt 0:01:13]} 65. Ke1 {[%emt 0:
00:35]} Kf4 {[%emt 0:00:54]} 66. Bc7+ {[%emt 0:00:21]} Ke4 {[%emt 0:00:30]} 67.
Bb6 {[%emt 0:00:08]} Bf3 {[%emt 0:00:23]} 68. Bd8 {[%emt 0:01:34]} Kf4 {[%emt
0:00:38]} 69. Bc7+ {[%emt 0:00:16]} Kg4 {[%emt 0:00:08]} 70. Rc4+ {[%emt 0:00:
43]} Kh3 {[%emt 0:00:09]} 71. Rc3 {[%emt 0:00:10]} Kg2 {[%emt 0:00:09]} 72. Re3
{[%emt 0:00:50]} Ra1+ {[%emt 0:00:34]} 73. Kd2 {[%emt 0:00:06]} Rd1+ {[%emt 0:
00:02]} 74. Kc2 {[%emt 0:00:16]} Rd4 {[%emt 0:00:03]} 75. Bb6 {[%emt 0:01:15]}
Rxh4 {[%emt 0:00:10]} 76. Kd2 {[%emt 0:00:11]} Rh1 {[%emt 0:00:35]} 77. Re7 {
[%emt 0:00:35]} Ra1 {[%emt 0:01:31]} 78. Rg7+ {[%emt 0:00:16]} Kh3 {[%emt 0:00:
22]} 79. Bc5 {[%emt 0:00:34]} Rb1 {[%emt 0:01:24]} 80. Ke3 {[%emt 0:00:37]}
Rb3+ {[%emt 0:00:29]} 81. Kf2 {[%emt 0:00:25]} Bg4 {[%emt 0:01:24]} 82. Bb4 {
[%emt 0:00:40]} Rf3+ {[%emt 0:00:16]} 83. Kg1 {[%emt 0:00:27]} Rf5 {[%emt 0:00:
35]} 84. Rxb7 {[%emt 0:00:37]} Be2 {[%emt 0:00:14]} 0-1

[Event "ETCC Women 2013"]
[Site "Warsaw"]
[Date "2013.11.15"]
[Round "7"]
[White "Batkovskyte, Dominyka"]
[Black "Hernandez Estevez, Yudania"]
[Result "1/2-1/2"]
[ECO "D10"]
[WhiteElo "2111"]
[BlackElo "2284"]
[PlyCount "114"]
[EventDate "2013.??.??"]
[EventCountry "POL"]
[WhiteTeam "Lithuania"]
[BlackTeam "Spain"]
[WhiteTeamCountry "LTU"]
[BlackTeamCountry "ESP"]
[TimeControl "40/5400+30:1800+30"]

1. d4 {[%emt 0:00:00]} d5 {[%emt 0:00:00]} 2. c4 {[%emt 0:00:00]} c6 {[%emt 0:
00:00]} 3. Nc3 {[%emt 0:00:00]} Nf6 {[%emt 0:00:00]} 4. e3 a6 {[%emt 0:03:13]}
5. Nf3 {[%emt 0:01:19]} b5 {[%emt 0:01:35]} 6. b3 Bg4 {[%emt 0:00:11]} 7. Be2 {
[%emt 0:01:52]} e6 {[%emt 0:01:31]} 8. O-O {[%emt 0:02:07]} Bd6 9. Bb2 Nbd7 10.
h3 Bf5 11. Nh4 Be4 12. Nf3 O-O 13. Nxe4 Nxe4 14. Bd3 f5 15. Rc1 Rc8 16. Qe2 Qa5
17. cxd5 exd5 18. a4 Bb8 19. axb5 axb5 20. Rc2 Qb4 21. Rfc1 Qxb3 22. Bxb5 f4
23. Bxc6 Rxc6 24. Rxc6 fxe3 25. fxe3 Ng3 26. Qd2 Ne4 27. Qe2 Ng3 28. Qd2 Nf6
29. Rc8 Nfe4 30. Rxf8+ Kxf8 31. Rc8+ Ke7 32. Rxb8 Qxb8 33. Ba3+ Ke6 34. Qb4
Qxb4 35. Bxb4 Nf5 36. Bd2 Nxd2 37. Nxd2 Nxe3 38. Kf2 Nc2 39. Nb3 Kf5 40. Kf3
Ne1+ 41. Kf2 Nc2 42. Kf3 h5 43. h4 g6 44. g3 g5 45. hxg5 Kxg5 46. Ke2 Kg4 47.
Kf2 Kg5 48. Ke2 Kf5 49. Kf3 Kg6 50. Kf4 Kf6 51. g4 h4 52. g5+ Kg6 53. Kg4 h3
54. Kxh3 Kxg5 55. Kg3 Kf5 56. Kf3 Kg5 57. Kg3 Kf5 1/2-1/2

[Event "ETCC Women 2013"]
[Site "Warsaw"]
[Date "2013.11.15"]
[Round "7"]
[White "Benmesbah, Natacha"]
[Black "Schnegg, Anna-Lena"]
[Result "1/2-1/2"]
[ECO "C55"]
[WhiteElo "2248"]
[BlackElo "2076"]
[PlyCount "128"]
[EventDate "2013.??.??"]
[EventCountry "POL"]
[WhiteTeam "France"]
[BlackTeam "Austria"]
[WhiteTeamCountry "FRA"]
[BlackTeamCountry "AUT"]
[TimeControl "40/5400+30:1800+30"]

1. e4 {[%emt 0:00:00]} e5 {[%emt 0:00:00]} 2. Nf3 {[%emt 0:00:00]} Nc6 {[%emt
0:00:01]} 3. Bc4 {[%emt 0:00:00]} Nf6 {[%emt 0:00:29]} 4. d3 {[%emt 0:00:31]}
Be7 {[%emt 0:00:21]} 5. O-O {[%emt 0:00:58]} O-O {[%emt 0:00:32]} 6. Re1 {
[%emt 0:01:43]} d6 {[%emt 0:00:19]} 7. c3 {[%emt 0:03:10]} Na5 {[%emt 0:00:44]}
8. Bb5 {[%emt 0:00:19]} a6 {[%emt 0:00:53]} 9. Ba4 {[%emt 0:00:04]} b5 {[%emt
0:00:18]} 10. Bc2 {[%emt 0:00:04]} c5 {[%emt 0:00:24]} 11. h3 {[%emt 0:03:30]}
Qc7 {[%emt 0:03:29]} 12. d4 {[%emt 0:03:18]} Bd7 {[%emt 0:07:24]} 13. Nbd2 {
[%emt 0:01:59]} Rfc8 {[%emt 0:11:43]} 14. d5 {[%emt 0:01:07]} c4 {[%emt 0:03:
39]} 15. Nf1 {[%emt 0:01:04]} Nb7 {[%emt 0:09:28]} 16. g4 {[%emt 0:07:19]} h5 {
[%emt 0:08:14]} 17. N3h2 {[%emt 0:06:48]} hxg4 {[%emt 0:04:15]} 18. hxg4 {
[%emt 0:01:21]} g6 {[%emt 0:06:09]} 19. Bg5 {[%emt 0:08:05]} Nxd5 {[%emt 0:03:
18]} 20. Bxe7 {[%emt 0:14:43]} Nxe7 {[%emt 0:00:10]} 21. Ne3 {[%emt 0:02:18]}
Kg7 {[%emt 0:05:44]} 22. Qf3 {[%emt 0:06:02]} f6 {[%emt 0:06:23]} 23. g5 {
[%emt 0:09:12]} fxg5 {[%emt 0:03:17]} 24. Qg3 {[%emt 0:01:04]} Rh8 {[%emt 0:11:
59]} 25. Qxg5 {[%emt 0:00:15]} Qd8 {[%emt 0:00:49]} 26. Neg4 {[%emt 0:03:33]}
Ng8 {[%emt 0:07:37]} 27. Qxd8 {[%emt 0:00:09]} Rxd8 {[%emt 0:00:21]} 28. a4 {
[%emt 0:00:45]} Nf6 {[%emt 0:01:58]} 29. Nxf6 {[%emt 0:01:56]} Kxf6 {[%emt 0:
00:03]} 30. axb5 {[%emt 0:00:35]} axb5 {[%emt 0:01:18]} 31. Ra7 {[%emt 0:00:25]
} Nc5 {[%emt 0:00:54]} 32. Rd1 {[%emt 0:01:08]} Ke7 {[%emt 0:02:25]} 33. Nf1 {
[%emt 0:01:37]} Ra8 {[%emt 0:01:14]} 34. Rda1 {[%emt 0:00:10]} Rxa7 {[%emt 0:
00:21]} 35. Rxa7 {[%emt 0:00:04]} Ke6 {[%emt 0:00:39]} 36. Bd1 {[%emt 0:02:29]}
Bc6 {[%emt 0:00:23]} 37. Bg4+ {[%emt 0:00:52]} Kf6 {[%emt 0:00:02]} 38. f3 {
[%emt 0:00:11]} Rd8 {[%emt 0:00:44]} 39. Rc7 {[%emt 0:01:13]} Bd7 {[%emt 0:00:
27]} 40. Ne3 {[%emt 0:00:00]} Bxg4 {[%emt 0:00:00]} 41. Nxg4+ {[%emt 0:01:44]}
Ke6 {[%emt 0:13:19]} 42. Rg7 {[%emt 0:02:43]} Nd3 {[%emt 0:01:27]} 43. Rxg6+ {
[%emt 0:03:20]} Kf7 {[%emt 0:00:57]} 44. Rh6 {[%emt 0:01:03]} Nxb2 {[%emt 0:01:
36]} 45. Rh7+ {[%emt 0:00:15]} Kg6 {[%emt 0:08:18]} 46. Rb7 {[%emt 0:00:29]}
Nd1 {[%emt 0:03:41]} 47. Rxb5 {[%emt 0:00:14]} Nxc3 {[%emt 0:02:04]} 48. Rb6 {
[%emt 0:00:36]} Kg5 {[%emt 0:00:41]} 49. Rc6 {[%emt 0:02:45]} Ne2+ {[%emt 0:01:
43]} 50. Kf2 {[%emt 0:01:46]} Nd4 {[%emt 0:01:20]} 51. Rxc4 {[%emt 0:01:28]}
Rb8 {[%emt 0:00:40]} 52. Rc3 {[%emt 0:10:10]} Rb2+ {[%emt 0:00:13]} 53. Ke3 {
[%emt 0:00:17]} Re2+ {[%emt 0:01:14]} 54. Kd3 {[%emt 0:00:04]} Kf4 {[%emt 0:00:
16]} 55. Rc6 {[%emt 0:03:16]} Nxc6 {[%emt 0:00:54]} 56. Kxe2 {[%emt 0:00:03]}
Nd4+ {[%emt 0:00:10]} 57. Kd3 {[%emt 0:00:12]} Nxf3 {[%emt 0:00:11]} 58. Nf6 {
[%emt 0:00:47]} Ng5 {[%emt 0:00:43]} 59. Nd5+ {[%emt 0:00:34]} Kf3 {[%emt 0:00:
06]} 60. Nf6 {[%emt 0:02:04]} Kf4 {[%emt 0:00:04]} 61. Nd5+ {[%emt 0:00:06]}
Kf3 {[%emt 0:01:35]} 62. Nf6 {[%emt 0:01:32]} Ne6 {[%emt 0:00:44]} 63. Kc4 {
[%emt 0:01:32]} Nc7 {[%emt 0:00:24]} 64. Kd3 {[%emt 0:01:09]} Ne6 {[%emt 0:00:
08]} 1/2-1/2